lending/lending_fUSD_20260206
["ID","MTS","AMOUNT","RATE_DAILY","PERIOD"]
[404651306,1770381042939,-150.0,0.00043672,60]
[404651307,1770381042948,-500.0,0.00043672,2]
[404651308,1770381042958,-1000.0,0.00043695,14]
[404651309,1770381042968,-162.0,0.00043717,120]
[404651310,1770381042977,-626.47040213,0.00043727,60]
[404651311,1770381042986,-235.09596036,0.00043727,60]
[404651312,1770381042996,-500.0,0.00043727,60]
[404651313,1770381043005,-150.0,0.00043727,60]
[404651314,1770381043014,-500.0,0.00043727,60]
[404651315,1770381043024,-500.0,0.00043727,60]
[404651317,1770381043033,-150.0,0.00043727,60]
[404651319,1770381043044,-150.61707435,0.00043727,60]
[404651320,1770381043053,-500.0,0.00043727,60]
[404651321,1770381043062,-200.0,0.00043727,60]
[404651322,1770381043072,-637.62081611,0.00043727,60]
[404651323,1770381043082,-500.0,0.00043727,2]
[404651325,1770381043091,-500.0,0.00043749,120]
[404651327,1770381043101,-500.0,0.00043749,2]
[404651329,1770381043110,-3200.0,0.0004375,120]
[404651331,1770381043122,-500.0,0.00043781,60]
[404651332,1770381043131,-150.0,0.00043781,60]
[404651333,1770381043140,-605.03210122,0.00043781,60]
[404651335,1770381043149,-160.40077851,0.00043781,60]
[404651337,1770381043158,-500.0,0.00043781,60]
[404651338,1770381043168,-510.31139374,0.00043781,60]
[404651339,1770381043178,-500.0,0.00043781,2]
[404651340,1770381043187,-1029.45407458,0.000438,30]
[404651341,1770381043197,-200.0,0.000438,25]
[404651342,1770381043206,-638.87924173,0.00043835,120]
[404651343,1770381043217,-10000.0,0.00043836,30]
[404651344,1770381043226,-500.0,0.00043836,60]
[404651345,1770381043235,-228.97777935,0.00043836,60]
[404651346,1770381043244,-500.0,0.00043836,60]
[404651347,1770381043253,-500.0,0.00043836,2]
[404651348,1770381043262,-500.0,0.00043891,60]
[404651349,1770381043271,-615.22197505,0.00043891,60]
[404651350,1770381043281,-204.66244419,0.00043891,2]
[404651351,1770381043290,-2000.0,0.00043899,3]
[404651352,1770381043299,-65753.0,0.00043918,30]
[404651353,1770381043309,-500.0,0.00043946,60]
[404651354,1770381043318,-677.56,0.00043967,30]
[404651355,1770381043327,-677.56,0.00043967,30]
[404651356,1770381043338,-518.56,0.00043988,120]
[404651357,1770381043347,-500.0,0.00043988,120]
[404651358,1770381043356,-308.72524557,0.00043989,18]
[404651359,1770381043365,-577.94638869,0.00043989,2]
[404651360,1770381043374,-205.41268525,0.00043991,14]
[404651361,1770381043384,-151.0,0.00043991,120]
[404651362,1770381043393,-160.11222815,0.00043991,120]
[404651363,1770381043402,-25185.44525929,0.00043995,15]
[404651364,1770381043411,-2019.75197979,0.00043995,28]
[404651365,1770381043421,-319.70517469,0.00043995,2]
[404651366,1770381043430,-10964.76746316,0.00043995,2]
[404651367,1770381043439,-1000.0,0.00043999,120]
[404651368,1770381043449,-616.07,0.00044,120]
[404651369,1770381043459,-500.0,0.00044,120]
[404651370,1770381043469,-150.0,0.00044,57]
[404651371,1770381043479,-160.0,0.00044,30]
[404651372,1770381043488,-2700.0,0.00044,120]
[404651373,1770381043497,-150.0,0.00044,10]
[404651374,1770381043507,-253.22863447,0.00044001,60]
[404651375,1770381043516,-4779.14242247,0.00044004,15]
[404651376,1770381043526,-150.0,0.00044068,60]
[404651377,1770381043536,-150.0,0.00044068,2]
[404651378,1770381043545,-400.0,0.0004407,3]
[404651379,1770381043555,-400.0,0.0004407,3]
[404651380,1770381043564,-400.0,0.0004407,3]
[404651381,1770381043574,-400.0,0.0004407,3]
[404651382,1770381043583,-605.94629065,0.0004407,3]
[404651383,1770381043592,-1000.0,0.0004407,3]
[404651384,1770381043601,-1000.0,0.0004407,3]
[404651385,1770381043611,-1000.0,0.0004407,3]
[404651386,1770381043621,-1000.0,0.0004407,3]
[404651387,1770381043631,-1000.0,0.0004407,3]
[404651388,1770381043640,-1000.0,0.0004407,3]
[404651389,1770381043650,-1000.0,0.0004407,3]
[404651390,1770381043659,-1000.0,0.0004407,3]
[404651391,1770381043668,-1000.0,0.0004407,3]
[404651392,1770381043678,-1000.0,0.0004407,3]
[404651393,1770381043687,-1358.57274403,0.0004407,3]
[404651394,1770381043697,-1000.0,0.00044082,30]
[404651395,1770381043706,-253.61853036,0.00044082,30]
[404651396,1770381043716,-219.94196114,0.00044082,30]
[404651397,1770381043725,-225.82182579,0.00044082,30]
[404651398,1770381043735,-241.68477112,0.00044082,30]
[404651399,1770381043745,-151.0,0.00044086,120]
[404651400,1770381043755,-150.0,0.00044087,2]
[404651401,1770381043764,-194.87348947,0.00044088,30]
[404651402,1770381043773,-194.87348947,0.00044088,30]
[404651403,1770381043783,-151.0,0.00044089,30]
[404651404,1770381043793,-151.0,0.00044089,30]
[404651405,1770381043803,-2778.119858,0.00044089,15]
[404651406,1770381043812,-150.0,0.00044089,2]
[404651407,1770381043822,-190.15567148,0.00044089,7]
[404651408,1770381043831,-300.0,0.00044089,14]
[404651409,1770381043840,-1504.0,0.00044089,14]
[404651410,1770381043850,-1504.0,0.00044089,14]
[404651411,1770381043859,-1504.0,0.00044089,14]
[404651412,1770381043869,-151.0,0.00044089,14]
[404651413,1770381043878,-152.24894628,0.00044089,14]
[404651414,1770381043887,-799.0,0.00044089,120]
[404651415,1770381043896,-3294.45,0.00044089,120]
[404651416,1770381043906,-150.00000001,0.00044089,30]
[404651417,1770381043915,-5958.25124478,0.00044089,30]
[404651418,1770381043925,-5958.25124478,0.00044089,30]
[404651419,1770381043934,-5958.25124478,0.00044089,30]
[404651420,1770381043944,-5958.25124478,0.00044089,30]
[404651421,1770381043954,-1004.0,0.0004409,60]
[404651422,1770381043964,-459.83553265,0.0004409,120]
[404651423,1770381043974,-500.0,0.0004409,2]
[404651424,1770381043984,-500.0,0.0004409,2]
[404651425,1770381043994,-500.0,0.0004409,2]
[404651426,1770381044002,-500.0,0.0004409,2]
[404651427,1770381044011,-500.0,0.0004409,2]
[404651428,1770381044022,-500.0,0.0004409,2]
[404651429,1770381044031,-500.0,0.0004409,2]
[404651430,1770381044043,-463.0925762,0.0004409,2]
[404651431,1770381044053,-518.56,0.0004409,120]
[404651432,1770381044063,-518.56,0.0004409,120]
[404651433,1770381044072,-500.0,0.0004409,120]
[404651434,1770381044083,-500.0,0.0004409,120]
[404651435,1770381044092,-151.0,0.00044091,120]
[404651436,1770381044102,-151.0,0.00044091,120]
[404651437,1770381044111,-190.139082,0.00044091,120]
[404651438,1770381044122,-173.256273,0.00044091,120]
[404651439,1770381044132,-199.281057,0.00044091,120]
[404651440,1770381044142,-151.0,0.00044091,120]
[404651441,1770381044151,-151.0,0.00044091,120]
[404651442,1770381044161,-1099.66546915,0.00044091,30]
[404651443,1770381044171,-151.0,0.00044091,60]
[404651444,1770381044180,-151.0,0.00044091,120]
[404651445,1770381044189,-151.0,0.00044091,120]
[404651446,1770381044199,-151.0,0.00044091,120]
[404651447,1770381044209,-151.0,0.00044091,120]
[404651448,1770381044218,-151.0,0.00044091,120]
[404651449,1770381044228,-1333.33334,0.00044091,120]
[404651450,1770381044238,-176.678893,0.00044091,120]
[404651451,1770381044247,-151.0,0.00044091,28]
[404651452,1770381044257,-151.0,0.00044091,28]
[404651453,1770381044266,-151.0,0.00044091,120]
[404651454,1770381044276,-164.972697,0.00044091,120]
[404651455,1770381044286,-164.972697,0.00044091,120]
[404651456,1770381044295,-164.972697,0.00044091,120]
[404651457,1770381044304,-164.972697,0.00044091,120]
[404651458,1770381044314,-341.867012,0.00044091,120]
[404651459,1770381044323,-341.867012,0.00044091,120]
[404651460,1770381044332,-341.867012,0.00044091,120]
[404651461,1770381044341,-341.867012,0.00044091,120]
[404651462,1770381044351,-151.0,0.00044091,120]
[404651463,1770381044360,-246.882604,0.00044091,120]
[404651464,1770381044369,-435.172406,0.00044091,120]
[404651465,1770381044378,-151.0,0.00044091,120]
[404651466,1770381044387,-435.172406,0.00044091,120]
[404651467,1770381044396,-435.172406,0.00044091,120]
[404651468,1770381044405,-435.172406,0.00044091,120]
[404651469,1770381044414,-341.96,0.00044091,120]
[404651470,1770381044423,-341.96,0.00044091,120]
[404651471,1770381044431,-341.96,0.00044091,120]
[404651472,1770381044440,-341.96,0.00044091,120]
[404651473,1770381044449,-151.0,0.00044091,120]
[404651474,1770381044458,-151.0,0.00044091,120]
[404651475,1770381044467,-151.0,0.00044091,90]
[404651476,1770381044476,-1231.966158,0.00044091,120]
[404651477,1770381044485,-151.0,0.00044091,90]
[404651478,1770381044495,-1231.966158,0.00044091,120]
[404651479,1770381044504,-151.0,0.00044091,90]
[404651480,1770381044513,-1231.966158,0.00044091,120]
[404651481,1770381044523,-1231.966158,0.00044091,120]
[404651482,1770381044532,-465920.71958299,0.00044091,30]
[404651483,1770381044541,-63425.74939749,0.00044091,30]
[404651484,1770381044551,-151.0,0.00044092,120]
[404651485,1770381044560,-160.11448077,0.00044094,7]
[404651486,1770381044570,-518.56,0.00044094,120]
[404651487,1770381044580,-518.56,0.00044094,120]
[404651488,1770381044589,-518.56,0.00044094,120]
[404651489,1770381044598,-518.56,0.00044094,120]
[404651490,1770381044608,-518.56,0.00044094,120]
[404651491,1770381044617,-518.56,0.00044094,120]
[404651492,1770381044628,-518.56,0.00044094,120]
[404651493,1770381044638,-518.56,0.00044094,120]
[404651494,1770381044648,-518.56,0.00044094,120]
[404651495,1770381044657,-518.56,0.00044094,120]
[404651496,1770381044667,-518.56,0.00044094,120]
[404651497,1770381044677,-518.65,0.00044094,120]
[404651498,1770381044687,-500.0,0.00044094,120]
[404651499,1770381044696,-500.0,0.00044094,120]
[404651500,1770381044705,-500.0,0.00044094,120]
[404651501,1770381044715,-506.40000002,0.00044094,120]
[404651502,1770381044724,-294.0,0.00044095,60]
[404651503,1770381044733,-177.444214,0.00044095,60]
[404651504,1770381044742,-151.0,0.00044095,120]
[404651505,1770381044751,-151.0,0.00044095,120]
[404651506,1770381044761,-155.096329,0.00044095,120]
[404651507,1770381044771,-151.0,0.00044095,120]
[404651508,1770381044781,-151.0,0.00044095,120]
[404651509,1770381044791,-292.3987,0.00044095,120]
[404651510,1770381044801,-151.0,0.00044095,28]
[404651511,1770381044810,-151.0,0.00044095,28]
[404651512,1770381044819,-151.0,0.00044095,28]
[404651513,1770381044829,-151.0,0.00044095,28]
[404651514,1770381044841,-270.650576,0.00044095,28]
[404651515,1770381044850,-164.972697,0.00044095,120]
[404651516,1770381044859,-164.972697,0.00044095,120]
[404651517,1770381044869,-164.972697,0.00044095,120]
[404651518,1770381044878,-164.972697,0.00044095,120]
[404651519,1770381044888,-164.972697,0.00044095,120]
[404651520,1770381044897,-164.972697,0.00044095,120]
[404651521,1770381044907,-164.972697,0.00044095,120]
[404651522,1770381044917,-164.972697,0.00044095,120]
[404651523,1770381044927,-164.972697,0.00044095,120]
[404651524,1770381044937,-164.972697,0.00044095,120]
[404651525,1770381044946,-164.972697,0.00044095,120]
[404651526,1770381044956,-164.972694,0.00044095,120]
[404651527,1770381044966,-341.867012,0.00044095,120]
[404651528,1770381044976,-341.867012,0.00044095,120]
[404651529,1770381044986,-341.867012,0.00044095,120]
[404651530,1770381044996,-341.867012,0.00044095,120]
[404651531,1770381045006,-341.867012,0.00044095,120]
[404651532,1770381045016,-341.867012,0.00044095,120]
[404651533,1770381045026,-341.867012,0.00044095,120]
[404651534,1770381045036,-341.867012,0.00044095,120]
[404651536,1770381045046,-341.867012,0.00044095,120]
[404651537,1770381045059,-341.867012,0.00044095,120]
[404651538,1770381045069,-341.867012,0.00044095,120]
[404651539,1770381045079,-341.867015,0.00044095,120]
[404651540,1770381045091,-151.0,0.00044095,120]
[404651541,1770381045101,-151.0,0.00044095,120]
[404651542,1770381045111,-151.0,0.00044095,120]
[404651543,1770381045121,-435.172406,0.00044095,120]
[404651544,1770381045132,-435.172406,0.00044095,120]
[404651545,1770381045142,-435.172406,0.00044095,120]
[404651546,1770381045151,-435.172406,0.00044095,120]
[404651547,1770381045161,-435.172406,0.00044095,120]
[404651548,1770381045171,-435.172406,0.00044095,120]
[404651549,1770381045181,-435.172406,0.00044095,120]
[404651550,1770381045191,-435.172406,0.00044095,120]
[404651551,1770381045200,-435.172406,0.00044095,120]
[404651553,1770381045210,-435.172406,0.00044095,120]
[404651554,1770381045220,-435.172406,0.00044095,120]
[404651555,1770381045230,-435.17241,0.00044095,120]
[404651556,1770381045239,-151.0,0.00044095,120]
[404651557,1770381045249,-151.0,0.00044095,90]
[404651558,1770381045258,-151.0,0.00044095,90]
[404651559,1770381045267,-1231.966158,0.00044095,120]
[404651560,1770381045277,-151.0,0.00044095,90]
[404651561,1770381045287,-1231.966158,0.00044095,120]
[404651562,1770381045296,-1231.966158,0.00044095,120]
[404651563,1770381045306,-151.0,0.00044095,90]
[404651564,1770381045315,-1231.966158,0.00044095,120]
[404651565,1770381045325,-151.0,0.00044095,90]
[404651566,1770381045335,-1231.966158,0.00044095,120]
[404651567,1770381045344,-151.0,0.00044095,90]
[404651568,1770381045354,-1231.966158,0.00044095,120]
[404651569,1770381045363,-151.0,0.00044095,90]
[404651571,1770381045373,-151.0,0.00044095,90]
[404651573,1770381045383,-1231.966158,0.00044095,120]
[404651575,1770381045392,-151.0,0.00044095,90]
[404651577,1770381045402,-1231.966158,0.00044095,120]
[404651579,1770381045411,-1231.966158,0.00044095,120]
[404651581,1770381045420,-5000.0,0.00044095,30]
[404651583,1770381045430,-1648983.86519655,0.00044095,10]
[404651585,1770381045440,-6947.92155332,0.00044095,4]
[404651587,1770381045449,-5317.4686322,0.00044095,4]
[404651589,1770381045458,-1521.45746822,0.00044095,2]
[404651591,1770381045468,-5891.10284742,0.00044095,2]
[404651593,1770381045478,-1626.0695411,0.00044095,10]
[404651595,1770381045487,-124275.5533003,0.00044095,2]
[404651597,1770381045497,-2033.58482861,0.00044095,5]
[404651599,1770381045506,-731.97263238,0.00044095,10]
[404651601,1770381045516,-984.81702636,0.00044095,2]
[404651603,1770381045527,-548.77832675,0.00044095,7]
[404651605,1770381045536,-220234.97585408,0.00044095,2]
[404651607,1770381045547,-2346.43662581,0.00044095,10]
[404651609,1770381045557,-2373.50299378,0.00044095,10]
[404651611,1770381045567,-1000.0,0.00044095,10]
[404651613,1770381045576,-13064.49815686,0.00044095,2]
[404651615,1770381045590,-500.0,0.00044095,10]
[404651618,1770381045601,-133135.20172351,0.00044095,2]
[404651620,1770381045611,-1070.65965311,0.00044095,7]
[404651622,1770381045622,-10895.84364854,0.00044095,2]
[404651624,1770381045632,-123029.85691265,0.00044095,10]
[404651635,1770381045731,-1585.55405208,0.00027005,2]
[404651637,1770381045743,-332.49,0.00027005,2]
[404651639,1770381045756,-1564.95594792,0.00027005,2]
[404651641,1770381045766,-430.82405208,0.00044095,10]
[404651645,1770381045810,-3483.0,0.00030005,2]
[404651646,1770381045821,-2517.0,0.00033005,2]
[404651649,1770381045833,-966.0,0.00033005,2]
[404651651,1770381045844,-3477.0,0.00036005,2]
[404651653,1770381045854,-1056.27960101,0.00044095,120]
[404651655,1770381045867,-175.68655699,0.00044095,120]
[404651657,1770381045876,-239.04462645,0.00044095,120]
[404651680,1770381046076,-992.92153155,0.00044095,120]
[404651682,1770381046088,-1231.966161,0.00044095,120]
[404651684,1770381046098,-151.0,0.00044095,30]
[404651686,1770381046108,-151.0,0.00044095,30]
[404651689,1770381046121,-13644.07942592,0.00044095,10]
[404651691,1770381046134,-519.92,0.00044095,10]
[404651708,1770381059694,2500.0,0.00010476,2]
[404651711,1770381070270,151.0,0.00044104,120]
[404651712,1770381071055,151.0,0.00044104,120]
[404651713,1770381071734,151.0,0.00044104,120]
[404651714,1770381072123,500.0,0.00010575,2]
[404651715,1770381072159,500.0,0.00010575,2]
[404651716,1770381072192,500.0,0.00010575,2]
[404651717,1770381072225,500.0,0.00010575,2]
[404651718,1770381072275,500.0,0.00010575,2]
[404651719,1770381072359,151.0,0.00044104,120]
[404651720,1770381072415,500.0,0.00010575,2]
[404651721,1770381072455,172.12688909,0.00010575,2]
[404651722,1770381072491,500.0,0.00010575,2]
[404651723,1770381072609,500.0,0.00010575,2]
[404651724,1770381072660,500.0,0.00010575,2]
[404651725,1770381073051,151.0,0.00044104,120]
[404651727,1770381073805,151.0,0.00044104,120]
[404651728,1770381073931,2000.0,0.00044104,120]
[404651729,1770381074551,151.0,0.00044104,120]
[404651730,1770381075200,151.0,0.00044104,120]
[404651731,1770381075948,151.0,0.00044104,120]
[404651732,1770381076750,151.0,0.00044104,120]
[404651734,1770381077395,151.0,0.00044104,120]
[404651739,1770381090586,151.0,0.00010573,2]
[404651747,1770381126714,291.5159924,0.00010575,2]
[404651748,1770381126746,299.68628799,0.00010575,2]
[404651750,1770381126852,185.69083052,0.00010575,2]
[404651751,1770381126887,314.30916948,0.00010575,2]
[404651940,1770381316690,151.0,0.00044104,120]
[404651941,1770381317464,156.587,0.00044104,120]
[404651942,1770381318183,162.380719,0.00044104,120]
[404651943,1770381318898,168.3888056,0.00044104,120]
[404651944,1770381319693,174.61919141,0.00044104,120]
[404651945,1770381320432,181.08010149,0.00044104,120]
[404651946,1770381321425,187.78006525,0.00044104,120]
[404651947,1770381321934,194.72792766,0.00044104,120]
[404651948,1770381322637,201.93286099,0.00044104,120]
[404651949,1770381323360,209.40437684,0.00044104,120]
[404651950,1770381323974,217.15233878,0.00044104,120]
[404651951,1770381324672,225.18697532,0.00044104,120]
[404651952,1770381325386,233.51889341,0.00044104,120]
[404651953,1770381326196,242.15909246,0.00044104,120]
[404651954,1770381326829,251.11897888,0.00044104,120]
[404651955,1770381327520,260.4103811,0.00044104,120]
[404651956,1770381328293,270.0455652,0.00044104,120]
[404651957,1770381328998,280.03725112,0.00044104,120]
[404651958,1770381329772,290.39862941,0.00044104,120]
[404651959,1770381330466,290.39862941,0.00044104,120]
[404651976,1770381389987,250.0,0.00030257,120]
[404651977,1770381390279,250.0,0.00030257,120]
[404651978,1770381390609,250.0,0.00030257,120]
[404651979,1770381390896,250.0,0.00030257,120]
[404651980,1770381391196,250.0,0.00030257,120]
[404651981,1770381391491,250.0,0.00030257,120]
[404651982,1770381391791,325.504497,0.00030257,120]
[404651999,1770381535319,160.0,0.00035616,120]
[404652000,1770381567102,360.61374739,0.00044099,45]
[404652004,1770381658892,1000.0,0.00044099,120]
[404652006,1770381666823,500.0,0.00044099,120]
[404652007,1770381668360,6560.1637595,0.0003561,120]
[404652008,1770381685719,500.0,0.00044099,120]
[404652009,1770381692195,500.0,0.00044099,120]
[404652010,1770381703737,500.0,0.00044099,120]
[404652011,1770381721608,500.0,0.00044099,120]
[404652069,1770381742179,629.59,0.00044099,120]
[404652078,1770382008139,-151.32886678,0.00012161,2]
[404652116,1770382086741,160.0,0.00035616,120]
[404652125,1770382172186,-98.67113322,0.00012161,2]
[404652126,1770382172206,-250.0,0.00012161,2]
[404652127,1770382172227,-300.0,0.00012161,2]
[404652128,1770382172247,-250.0,0.00012311,2]
[404652129,1770382172267,-500.0,0.00012347,2]
[404652130,1770382172287,-300.0,0.00012578,2]
[404652131,1770382172307,-612.81915892,0.00013039,2]
[404652132,1770382172335,-115.92522438,0.00013077,2]
[404652135,1770382231573,-264.95460188,0.00013039,2]
[404652136,1770382231582,-189.63337836,0.00013039,2]
[404652137,1770382231593,-612.35383556,0.00013039,2]
[404652138,1770382231628,-404.53844161,0.00013039,2]
[404652139,1770382231639,-664.15,0.00013039,2]
[404652140,1770382231688,-462.11065713,0.00013039,2]
[404652141,1770382231747,-7290.10780635,0.00013039,2]
[404652142,1770382231756,-757.40699243,0.00013039,2]
[404652143,1770382231765,-250.0,0.00013058,2]
[404652144,1770382231778,-104.97956156,0.00013077,2]
[404652145,1770382231788,-160.11448078,0.0001309,2]
[404652146,1770382231798,-1200.0,0.00013099,2]
[404652148,1770382231807,-33619.01942662,0.000131,2]
[404652150,1770382231819,-20748.43576513,0.000131,2]
[404652169,1770382237717,-9888.93,0.0001307,2]
[404652170,1770382237727,-10052.97,0.000131,2]
[404652171,1770382237773,-1802957.66422578,0.000131,2]
[404652376,1770382239905,-41369.16639227,0.000131,2]
[404652378,1770382239917,-1993.89,0.000131,2]
[404652395,1770382240073,-1589258.8541902,0.000131,2]
[404652398,1770382240083,-220.90478592,0.00013139,2]
[404652400,1770382240093,-1000.33,0.00013177,2]
[404652402,1770382240102,-300.0,0.00013199,2]
[404652404,1770382240112,-8938.99137974,0.000132,2]
[404652406,1770382240121,-577.94638869,0.000132,2]
[404652408,1770382240131,-220.90478592,0.000132,2]
[404652410,1770382240140,-89328.2967,0.000132,2]
[404652412,1770382240149,-2500.0,0.000132,2]
[404652414,1770382240159,-6728.3003,0.000132,2]
[404652416,1770382240168,-1000.33,0.00013201,2]
[404652418,1770382240177,-1000.33,0.00013225,2]
[404652420,1770382240186,-1000.33,0.0001325,2]
[404652422,1770382240195,-738.0,0.0001326,2]
[404652424,1770382240204,-2076.46810974,0.00013268,2]
[404652425,1770382240214,-150.0,0.00013272,2]
[404652428,1770382240223,-150.0,0.00013273,2]
[404652430,1770382240232,-150.0,0.00013273,2]
[404652431,1770382240242,-1000.33,0.00013274,2]
[404652433,1770382240252,-5587.44853025,0.00013282,2]
[404652436,1770382240263,-151.0,0.00013297,2]
[404652438,1770382240273,-1000.33,0.00013298,2]
[404652439,1770382240282,-545.8713315,0.00013299,2]
[404652442,1770382240291,-500.0,0.00013299,2]
[404652443,1770382240300,-500.0,0.00013299,2]
[404652446,1770382240310,-392.49166652,0.00013299,2]
[404652447,1770382240319,-500.0,0.00013299,2]
[404652450,1770382240333,-500.0,0.00013299,2]
[404652452,1770382240342,-500.0,0.00013299,2]
[404652454,1770382240353,-500.0,0.00013299,2]
[404652456,1770382240365,-1000.33,0.00013323,2]
[404652458,1770382240375,-207.03329688,0.00013328,2]
[404652460,1770382240384,-1000.33,0.00013347,2]
[404652462,1770382240395,-1000.33,0.00013371,2]
[404652464,1770382240404,-303.92897872,0.00013377,2]
[404652466,1770382240414,-241.00287784,0.00013377,2]
[404652468,1770382240423,-250.0,0.00013377,2]
[404652470,1770382240434,-151.0,0.00013392,2]
[404652472,1770382240443,-151.0,0.00013392,2]
[404652474,1770382240452,-151.0,0.00013392,2]
[404652476,1770382240462,-151.0,0.00013392,2]
[404652478,1770382240471,-151.0,0.00013392,2]
[404652480,1770382240480,-151.0,0.00013392,2]
[404652482,1770382240489,-151.0,0.00013392,2]
[404652484,1770382240498,-151.0,0.00013392,2]
[404652485,1770382240507,-151.0,0.00013392,2]
[404652488,1770382240517,-151.0,0.00013392,2]
[404652490,1770382240526,-151.0,0.00013392,2]
[404652492,1770382240536,-151.0,0.00013392,2]
[404652493,1770382240546,-151.0,0.00013392,2]
[404652495,1770382240555,-151.0,0.00013392,2]
[404652498,1770382240565,-151.0,0.00013392,2]
[404652499,1770382240574,-151.0,0.00013392,2]
[404652502,1770382240583,-151.0,0.00013392,2]
[404652503,1770382240592,-151.0,0.00013392,2]
[404652505,1770382240602,-151.0,0.00013392,2]
[404652508,1770382240612,-151.0,0.00013392,2]
[404652509,1770382240620,-151.0,0.00013392,2]
[404652512,1770382240630,-151.0,0.00013392,2]
[404652514,1770382240643,-151.0,0.00013392,2]
[404652516,1770382240653,-151.0,0.00013392,2]
[404652518,1770382240662,-151.0,0.00013392,2]
[404652520,1770382240671,-151.0,0.00013392,2]
[404652522,1770382240681,-151.0,0.00013392,2]
[404652524,1770382240690,-151.0,0.00013392,2]
[404652526,1770382240699,-151.0,0.00013392,2]
[404652528,1770382240708,-151.0,0.00013392,2]
[404652530,1770382240717,-151.0,0.00013392,2]
[404652532,1770382240728,-151.0,0.00013392,2]
[404652534,1770382240738,-151.0,0.00013392,2]
[404652536,1770382240748,-151.0,0.00013392,2]
[404652538,1770382240757,-151.0,0.00013392,2]
[404652540,1770382240767,-151.0,0.00013392,2]
[404652542,1770382240776,-151.0,0.00013392,2]
[404652544,1770382240786,-151.0,0.00013392,2]
[404652546,1770382240795,-151.0,0.00013392,2]
[404652548,1770382240804,-153.37287127,0.00013392,2]
[404652550,1770382240813,-1000.33,0.00013395,2]
[404652552,1770382240822,-155.531,0.00013399,2]
[404652554,1770382240832,-1965.38,0.00013399,2]
[404652556,1770382240843,-1000.33,0.0001342,2]
[404652558,1770382240852,-1000.33,0.00013444,2]
[404652560,1770382240861,-1000.33,0.00013468,2]
[404652562,1770382240873,-1000.33,0.00013492,2]
[404652564,1770382240883,-95061.09954861,0.000135,2]
[404652566,1770382240892,-1000.33,0.00013517,2]
[404652568,1770382240901,-1000.33,0.00013541,2]
[404652570,1770382240910,-1000.33,0.00013565,2]
[404652572,1770382240920,-1000.33,0.0001359,2]
[404652574,1770382240929,-1000.33,0.00013614,2]
[404652576,1770382240939,-1000.33,0.00013638,2]
[404652578,1770382240948,-500.0,0.00013698,2]
[404652580,1770382240957,-264.20969998,0.00013698,2]
[404652582,1770382240967,-500.0,0.00013698,2]
[404652584,1770382240976,-500.0,0.00013698,2]
[404652586,1770382240985,-200.0,0.00013699,2]
[404652589,1770382240997,-1600.0,0.00013864,2]
[404652591,1770382241007,-151.0,0.00013951,2]
[404652593,1770382241016,-4442.89,0.00013987,2]
[404652595,1770382241025,-1279.72,0.00014296,2]
[404652597,1770382241034,-195.0,0.00014343,2]
[404652599,1770382241043,-250.0,0.00014343,2]
[404652601,1770382241053,-300.0,0.00014343,2]
[404652603,1770382241062,-2500.0,0.00014343,2]
[404652605,1770382241071,-2500.0,0.00014343,2]
[404652607,1770382241080,-2500.0,0.00014343,2]
[404652609,1770382241089,-2500.0,0.00014343,2]
[404652611,1770382241098,-2500.0,0.00014343,2]